[Event "Open NK Rapid 2025"]
[Site "Helmond, Netherlands"]
[Date "2025.05.03"]
[Round "7.19"]
[White "Jara Segovia, Jesus Javier"]
[Black "Geboers, Jimmy"]
[Result "0-1"]
[TimeControl "15+5"]
[WhiteFideId "3925439"]
[BlackFideId "262919"]
[WhiteElo "1909"]
[BlackElo "2065"]

1. e4 {[%clk 00:15:08]} {[%emt 00:00:02]} e6 {[%clk 00:15:09]} {[%emt
00:00:02]} 2. Nf3 {[%clk 00:15:12]} {[%emt 00:00:01]} d5 {[%clk 00:15:13]} 3.
e5 {[%clk 00:15:14]} {[%emt 00:00:03]} c5 {[%clk 00:15:16]} {[%emt 00:00:01]} 4.
b4 {[%clk 00:15:18]} {[%emt 00:00:01]} cxb4 {[%clk 00:14:58]} {[%emt 00:00:24]}
5. d4 {[%clk 00:15:23]} Nc6 {[%clk 00:15:00]} {[%emt 00:00:04]} 6. a3 {[%clk
00:15:27]} b3 {[%clk 00:15:02]} {[%emt 00:00:02]} 7. cxb3 {[%clk 00:15:25]}
{[%emt 00:00:07]} Qb6 {[%clk 00:14:47]} {[%emt 00:00:20]} 8. Bd3 {[%clk
00:15:14]} {[%emt 00:00:15]} Bd7 {[%clk 00:14:49]} {[%emt 00:00:04]} 9. Be3
{[%clk 00:15:17]} {[%emt 00:00:02]} Nge7 {[%clk 00:14:20]} {[%emt 00:00:34]} 10.
O-O {[%clk 00:15:20]} {[%emt 00:00:02]} Nf5 {[%clk 00:14:20]} {[%emt 00:00:05]}
11. Bxf5 {[%clk 00:14:58]} {[%emt 00:00:27]} exf5 {[%clk 00:14:22]} {[%emt
00:00:01]} 12. Nc3 {[%clk 00:14:56]} {[%emt 00:00:08]} Be6 {[%clk 00:14:11]}
{[%emt 00:00:15]} 13. Ng5 {[%clk 00:14:34]} {[%emt 00:00:28]} Be7 {[%clk
00:14:08]} {[%emt 00:00:08]} 14. Nxe6 {[%clk 00:14:23]} {[%emt 00:00:16]} fxe6
{[%clk 00:14:10]} {[%emt 00:00:03]} 15. b4 {[%clk 00:14:03]} {[%emt 00:00:26]}
O-O {[%clk 00:14:04]} {[%emt 00:00:10]} 16. Na4 {[%clk 00:13:08]} {[%emt
00:01:02]} Qc7 {[%clk 00:13:51]} {[%emt 00:00:16]} 17. Rc1 {[%clk 00:12:54]}
{[%emt 00:00:20]} Qd7 {[%clk 00:13:53]} {[%emt 00:00:03]} 18. f4 {[%clk
00:12:27]} {[%emt 00:00:31]} Rac8 {[%clk 00:13:35]} {[%emt 00:00:23]} 19. Rf3
{[%clk 00:12:10]} {[%emt 00:00:23]} Nxd4 {[%clk 00:13:14]} {[%emt 00:00:25]} 20.
Bxd4 {[%clk 00:11:38]} {[%emt 00:00:38]} Rxc1 {[%clk 00:13:12]} {[%emt
00:00:07]} 21. Qxc1 {[%clk 00:11:33]} {[%emt 00:00:10]} Qxa4 {[%clk 00:13:13]}
{[%emt 00:00:03]} 22. Rc3 {[%clk 00:10:56]} {[%emt 00:00:43]} Bd8 {[%clk
00:11:29]} {[%emt 00:01:49]} 23. h3 {[%clk 00:09:36]} {[%emt 00:01:25]} a5
{[%clk 00:11:23]} {[%emt 00:00:10]} 24. Rc8 {[%clk 00:09:04]} {[%emt 00:00:37]}
axb4 {[%clk 00:09:05]} {[%emt 00:02:23]} 25. Bc5 {[%clk 00:09:05]} {[%emt
00:00:04]} Re8 {[%clk 00:08:46]} {[%emt 00:00:25]} 26. Bxb4 {[%clk 00:09:07]}
{[%emt 00:00:02]} Bb6+ {[%clk 00:08:27]} {[%emt 00:00:24]} 27. Kh2 {[%clk
00:09:09]} {[%emt 00:00:03]} Qd7 {[%clk 00:08:16]} {[%emt 00:00:16]} 28. Rxe8+
{[%clk 00:08:08]} {[%emt 00:01:07]} Qxe8 {[%clk 00:08:19]} {[%emt 00:00:01]} 29.
Bd6 {[%clk 00:08:11]} {[%emt 00:00:03]} Qc6 {[%clk 00:07:40]} {[%emt 00:00:43]}
30. Qd1 {[%clk 00:07:57]} {[%emt 00:00:18]} Be3 {[%clk 00:07:09]} {[%emt
00:00:37]} 31. g3 {[%clk 00:06:38]} {[%emt 00:01:24]} Qc1 {[%clk 00:06:57]}
{[%emt 00:00:17]} 32. Qxc1 {[%clk 00:05:59]} {[%emt 00:00:45]} Bxc1 {[%clk
00:06:59]} {[%emt 00:00:02]} 33. Kg2 {[%clk 00:06:03]} {[%emt 00:00:01]} h5
{[%clk 00:06:59]} {[%emt 00:00:05]} 34. Kf3 {[%clk 00:06:03]} {[%emt 00:00:06]}
Kf7 {[%clk 00:06:48]} {[%emt 00:00:15]} 35. Bc5 {[%clk 00:06:00]} {[%emt
00:00:08]} Ke8 {[%clk 00:06:42]} {[%emt 00:00:11]} 36. g4 {[%clk 00:05:32]}
{[%emt 00:00:34]} hxg4+ {[%clk 00:06:35]} {[%emt 00:00:12]} 37. hxg4 {[%clk
00:05:35]} {[%emt 00:00:01]} g6 {[%clk 00:06:38]} {[%emt 00:00:02]} 38. a4
{[%clk 00:04:46]} {[%emt 00:00:55]} Kd7 {[%clk 00:06:36]} {[%emt 00:00:06]} 39.
Bd4 {[%clk 00:04:48]} {[%emt 00:00:03]} Kc6 {[%clk 00:06:28]} {[%emt 00:00:12]}
40. a5 {[%clk 00:04:09]} {[%emt 00:00:46]} Kb5 {[%clk 00:06:26]} {[%emt
00:00:05]} 41. Bc3 {[%clk 00:04:06]} {[%emt 00:00:09]} Ba3 {[%clk 00:06:25]}
{[%emt 00:00:05]} 42. gxf5 {[%clk 00:03:46]} {[%emt 00:00:26]} gxf5 {[%clk
00:06:28]} {[%emt 00:00:02]} 43. Bd2 {[%clk 00:03:14]} {[%emt 00:00:38]} Bb4
{[%clk 00:06:25]} {[%emt 00:00:07]} 44. Bc1 {[%clk 00:03:00]} {[%emt 00:00:19]}
Kc4 {[%clk 00:06:23]} {[%emt 00:00:07]} 45. Kg3 {[%clk 00:03:01]} {[%emt
00:00:03]} Kd3 {[%clk 00:06:26]} {[%emt 00:00:03]} 46. Kh4 {[%clk 00:03:04]}
{[%emt 00:00:02]} Bd2 {[%clk 00:06:22]} {[%emt 00:00:09]} 47. Bxd2 {[%clk
00:03:03]} {[%emt 00:00:07]} Kxd2 {[%clk 00:06:25]} {[%emt 00:00:02]} 48. Kg5
{[%clk 00:03:06]} {[%emt 00:00:01]} Kc3 {[%clk 00:06:15]} {[%emt 00:00:16]} 49.
Kf6 {[%clk 00:03:10]} d4 {[%clk 00:06:18]} {[%emt 00:00:01]} 50. Kxe6 {[%clk
00:03:14]} {[%emt 00:00:02]} d3 {[%clk 00:06:22]} {[%emt 00:00:01]} 51. Kxf5
{[%clk 00:03:17]} d2 {[%clk 00:06:26]} {[%emt 00:00:01]} 52. e6 {[%clk
00:03:21]} {[%emt 00:00:02]} d1=Q {[%clk 00:06:28]} {[%emt 00:00:03]} 53. Kf6
{[%clk 00:03:21]} {[%emt 00:00:04]} Qd4+ {[%clk 00:05:57]} {[%emt 00:00:35]} 54.
Kg5 {[%clk 00:03:03]} {[%emt 00:00:24]} Qg7+ {[%clk 00:05:57]} {[%emt
00:00:05]} 55. Kf5 {[%clk 00:03:04]} {[%emt 00:00:04]} Kd4 {[%clk 00:05:27]}
{[%emt 00:00:33]} 56. e7 {[%clk 00:03:03]} {[%emt 00:00:08]} Qxe7 {[%clk
00:05:30]} {[%emt 00:00:02]} 57. Kg6 {[%clk 00:03:07]} {[%emt 00:00:01]} Ke4
{[%clk 00:05:26]} {[%emt 00:00:08]} 58. f5 {[%clk 00:03:11]} {[%emt 00:00:02]}
Ke5 {[%clk 00:05:27]} {[%emt 00:00:03]} 0-1

[Event "Open NK Rapid 2025"]
[Site "Helmond, Netherlands"]
[Date "2025.05.03"]
[Round "7.20"]
[White "Zecha, Oscar"]
[Black "Roebers, Jan"]
[Result "0-1"]
[TimeControl "15+5"]
[WhiteFideId "1073826"]
[BlackFideId "1007815"]
[WhiteElo "1873"]
[BlackElo "2058"]

1. e3 {[%clk 00:14:59]} {[%emt 00:00:05]} Nf6 {[%clk 00:14:56]} {[%emt
00:00:19]} 2. Nf3 {[%clk 00:14:35]} {[%emt 00:00:30]} g6 {[%clk 00:14:58]}
{[%emt 00:00:03]} 3. b4 {[%clk 00:14:32]} {[%emt 00:00:08]} a5 {[%clk
00:14:50]} {[%emt 00:00:13]} 4. b5 {[%clk 00:14:33]} {[%emt 00:00:03]} Bg7
{[%clk 00:14:42]} {[%emt 00:00:13]} 5. Bb2 {[%clk 00:14:38]} O-O {[%clk
00:14:40]} {[%emt 00:00:07]} 6. c4 {[%clk 00:14:21]} {[%emt 00:00:22]} d6
{[%clk 00:14:25]} {[%emt 00:00:20]} 7. Be2 {[%clk 00:14:07]} {[%emt 00:00:19]}
e5 {[%clk 00:14:08]} {[%emt 00:00:21]} 8. d4 {[%clk 00:13:41]} {[%emt
00:00:32]} Re8 {[%clk 00:13:21]} {[%emt 00:00:51]} 9. O-O {[%clk 00:13:35]}
{[%emt 00:00:12]} exd4 {[%clk 00:12:58]} {[%emt 00:00:28]} 10. exd4 {[%clk
00:13:20]} {[%emt 00:00:20]} d5 {[%clk 00:11:54]} {[%emt 00:01:09]} 11. Nbd2
{[%clk 00:12:03]} {[%emt 00:01:22]} a4 {[%clk 00:11:18]} {[%emt 00:00:40]} 12.
Rc1 {[%clk 00:11:56]} {[%emt 00:00:13]} a3 {[%clk 00:11:15]} {[%emt 00:00:08]}
13. Ba1 {[%clk 00:11:54]} {[%emt 00:00:07]} dxc4 {[%clk 00:10:51]} {[%emt
00:00:29]} 14. Nxc4 {[%clk 00:11:55]} {[%emt 00:00:04]} Nd5 {[%clk 00:10:36]}
{[%emt 00:00:20]} 15. Nfe5 {[%clk 00:11:19]} {[%emt 00:00:41]} Nd7 {[%clk
00:10:19]} {[%emt 00:00:22]} 16. Bf3 {[%clk 00:11:05]} {[%emt 00:00:19]} Nxe5
{[%clk 00:10:00]} {[%emt 00:00:23]} 17. dxe5 {[%clk 00:10:56]} {[%emt
00:00:13]} Be6 {[%clk 00:09:48]} {[%emt 00:00:18]} 18. Qd2 {[%clk 00:08:55]}
{[%emt 00:02:07]} Nb6 {[%clk 00:08:20]} {[%emt 00:01:33]} 19. Qxd8 {[%clk
00:08:41]} {[%emt 00:00:17]} Rexd8 {[%clk 00:08:19]} {[%emt 00:00:08]} 20. Nxb6
{[%clk 00:08:24]} {[%emt 00:00:23]} cxb6 {[%clk 00:08:21]} {[%emt 00:00:02]} 21.
Bxb7 {[%clk 00:05:44]} {[%emt 00:02:45]} Rab8 {[%clk 00:08:11]} {[%emt
00:00:15]} 22. Bc6 {[%clk 00:05:39]} {[%emt 00:00:10]} Bxa2 {[%clk 00:08:02]}
{[%emt 00:00:13]} 23. Rc3 {[%clk 00:04:10]} {[%emt 00:01:35]} Bf8 {[%clk
00:07:35]} {[%emt 00:00:32]} 24. h3 {[%clk 00:03:06]} {[%emt 00:01:08]} Be6
{[%clk 00:07:20]} {[%emt 00:00:20]} 25. Rfc1 {[%clk 00:02:35]} {[%emt
00:00:37]} Rd2 {[%clk 00:06:57]} {[%emt 00:00:27]} 26. R3c2 {[%clk 00:02:06]}
{[%emt 00:00:34]} Rxc2 {[%clk 00:06:50]} {[%emt 00:00:12]} 27. Rxc2 {[%clk
00:02:11]} Rd8 {[%clk 00:06:54]} {[%emt 00:00:01]} 28. Bf3 {[%clk 00:02:07]}
{[%emt 00:00:09]} Bc5 {[%clk 00:06:21]} {[%emt 00:00:37]} 29. Kh2 {[%clk
00:01:19]} {[%emt 00:00:54]} Rd3 {[%clk 00:06:15]} {[%emt 00:00:11]} 30. Be2
{[%clk 00:00:31]} {[%emt 00:00:53]} Rb3 {[%clk 00:06:11]} {[%emt 00:00:09]} 31.
Bc4 {[%clk 00:00:14]} {[%emt 00:00:22]} Bxc4 {[%clk 00:05:48]} {[%emt
00:00:28]} 32. Rxc4 {[%clk 00:00:17]} {[%emt 00:00:02]} Rb1 {[%clk 00:05:44]}
{[%emt 00:00:09]} 33. Bc3 {[%clk 00:00:15]} {[%emt 00:00:07]} Rc1 {[%clk
00:05:42]} {[%emt 00:00:07]} 34. e6 {[%clk 00:00:09]} {[%emt 00:00:11]} fxe6
{[%clk 00:05:31]} {[%emt 00:00:16]} 35. h4 {[%clk 00:00:07]} {[%emt 00:00:07]}
Rxc3 {[%clk 00:05:06]} {[%emt 00:00:29]} 36. Rxc3 {[%clk 00:00:11]} {[%emt
00:00:02]} a2 {[%clk 00:05:10]} {[%emt 00:00:01]} 37. Rc1 {[%clk 00:00:06]}
{[%emt 00:00:10]} Bd4 {[%clk 00:05:13]} {[%emt 00:00:02]} 38. Rc8+ {[%clk
00:00:06]} {[%emt 00:00:05]} Kf7 {[%clk 00:05:16]} {[%emt 00:00:01]} 39. Rc7+
{[%clk 00:00:08]} {[%emt 00:00:04]} Kf6 {[%clk 00:05:20]} 40. Ra7 {[%clk
00:00:07]} {[%emt 00:00:06]} a1=Q {[%clk 00:05:22]} {[%emt 00:00:03]} 41. Rxa1
{[%clk 00:00:08]} {[%emt 00:00:04]} Bxa1 {[%clk 00:05:25]} {[%emt 00:00:02]} 42.
Kg3 {[%clk 00:00:07]} {[%emt 00:00:06]} h5 {[%clk 00:05:22]} {[%emt 00:00:07]}
43. Kf3 {[%clk 00:00:10]} {[%emt 00:00:03]} Bd4 {[%clk 00:05:24]} {[%emt
00:00:03]} 44. g3 {[%clk 00:00:13]} {[%emt 00:00:02]} Bc5 {[%clk 00:05:27]}
{[%emt 00:00:02]} 45. Ke2 {[%clk 00:00:14]} {[%emt 00:00:04]} Kf5 {[%clk
00:05:29]} {[%emt 00:00:03]} 46. f3 {[%clk 00:00:17]} {[%emt 00:00:01]} e5
{[%clk 00:05:32]} {[%emt 00:00:01]} 47. Kf1 {[%clk 00:00:15]} {[%emt 00:00:07]}
e4 {[%clk 00:05:33]} {[%emt 00:00:04]} 48. fxe4+ {[%clk 00:00:19]} {[%emt
00:00:02]} Kxe4 {[%clk 00:05:37]} 49. Ke2 {[%clk 00:00:23]} Bd6 {[%clk
00:05:36]} {[%emt 00:00:06]} 50. Kf2 {[%clk 00:00:26]} {[%emt 00:00:02]} Be5
{[%clk 00:05:28]} {[%emt 00:00:13]} 51. Kg2 {[%clk 00:00:27]} {[%emt 00:00:03]}
Ke3 {[%clk 00:05:31]} {[%emt 00:00:02]} 52. Kh3 {[%clk 00:00:21]} {[%emt
00:00:12]} Kd4 {[%clk 00:05:33]} {[%emt 00:00:03]} 53. g4 {[%clk 00:00:22]}
{[%emt 00:00:04]} hxg4+ {[%clk 00:05:33]} {[%emt 00:00:05]} 54. Kxg4 {[%clk
00:00:26]} {[%emt 00:00:01]} Kc5 {[%clk 00:05:33]} {[%emt 00:00:05]} 55. Kg5
{[%clk 00:00:28]} {[%emt 00:00:03]} Kxb5 {[%clk 00:05:36]} {[%emt 00:00:02]} 56.
Kxg6 {[%clk 00:00:31]} {[%emt 00:00:02]} Kc4 {[%clk 00:05:39]} {[%emt
00:00:02]} 57. h5 {[%clk 00:00:35]} b5 {[%clk 00:05:43]} {[%emt 00:00:01]} 58.
Kf5 {[%clk 00:00:39]} Bd4 {[%clk 00:05:47]} {[%emt 00:00:01]} 59. h6 {[%clk
00:00:36]} {[%emt 00:00:08]} b4 {[%clk 00:05:51]} 60. h7 {[%clk 00:00:40]}
{[%emt 00:00:01]} b3 {[%clk 00:05:55]} {[%emt 00:00:01]} 0-1

[Event "Open NK Rapid 2025"]
[Site "Helmond, Netherlands"]
[Date "2025.05.03"]
[Round "7.21"]
[White "Margaryan, Aren"]
[Black "Cayonlu, Arda"]
[Result "0-1"]
[TimeControl "15+5"]
[WhiteFideId "40105075"]
[BlackFideId "6339786"]
[WhiteElo "2054"]
[BlackElo "1885"]

1. e4 {[%clk 00:15:08]} {[%emt 00:00:01]} e5 {[%clk 00:15:09]} {[%emt
00:00:01]} 2. Nf3 {[%clk 00:15:11]} {[%emt 00:00:02]} Nc6 {[%clk 00:15:13]}
{[%emt 00:00:01]} 3. Nc3 {[%clk 00:15:14]} {[%emt 00:00:03]} Nf6 {[%clk
00:15:16]} {[%emt 00:00:01]} 4. d4 {[%clk 00:15:17]} {[%emt 00:00:02]} exd4
{[%clk 00:15:18]} {[%emt 00:00:04]} 5. Nxd4 {[%clk 00:15:20]} {[%emt 00:00:01]}
Bb4 {[%clk 00:15:16]} {[%emt 00:00:07]} 6. Nxc6 {[%clk 00:15:22]} {[%emt
00:00:03]} bxc6 {[%clk 00:15:19]} {[%emt 00:00:02]} 7. Bd3 {[%clk 00:15:25]}
{[%emt 00:00:01]} d5 {[%clk 00:14:58]} {[%emt 00:00:27]} 8. exd5 {[%clk
00:15:27]} {[%emt 00:00:03]} cxd5 {[%clk 00:14:48]} {[%emt 00:00:15]} 9. O-O
{[%clk 00:15:28]} {[%emt 00:00:04]} O-O {[%clk 00:14:24]} {[%emt 00:00:30]} 10.
h3 {[%clk 00:15:32]} Bb7 {[%clk 00:12:46]} {[%emt 00:01:42]} 11. a3 {[%clk
00:15:13]} {[%emt 00:00:24]} Bxc3 {[%clk 00:12:19]} {[%emt 00:00:33]} 12. bxc3
{[%clk 00:15:07]} {[%emt 00:00:11]} Ne4 {[%clk 00:12:19]} {[%emt 00:00:05]} 13.
Bb2 {[%clk 00:13:13]} {[%emt 00:01:59]} Rb8 {[%clk 00:11:57]} {[%emt 00:00:26]}
14. c4 {[%clk 00:12:47]} {[%emt 00:00:28]} d4 {[%clk 00:11:25]} {[%emt
00:00:40]} 15. Bxe4 {[%clk 00:12:02]} {[%emt 00:00:51]} Bxe4 {[%clk 00:11:28]}
{[%emt 00:00:02]} 16. Qxd4 {[%clk 00:12:04]} {[%emt 00:00:02]} Qxd4 {[%clk
00:10:54]} {[%emt 00:00:39]} 17. Bxd4 {[%clk 00:12:05]} {[%emt 00:00:04]} a6
{[%clk 00:10:43]} {[%emt 00:00:16]} 18. Be5 {[%clk 00:11:39]} {[%emt 00:00:31]}
Rb7 {[%clk 00:10:32]} {[%emt 00:00:16]} 19. Rfd1 {[%clk 00:11:25]} {[%emt
00:00:18]} f6 {[%clk 00:08:20]} {[%emt 00:02:19]} 20. Bf4 {[%clk 00:11:09]}
{[%emt 00:00:17]} Bxc2 {[%clk 00:06:02]} {[%emt 00:02:27]} 21. Rd7 {[%clk
00:11:06]} {[%emt 00:00:07]} Bf5 {[%clk 00:03:11]} {[%emt 00:02:55]} 22. Re7
{[%clk 00:10:37]} {[%emt 00:00:35]} Rf7 {[%clk 00:03:12]} {[%emt 00:00:03]} 23.
Rae1 {[%clk 00:10:34]} {[%emt 00:00:08]} Bd7 {[%clk 00:03:09]} {[%emt
00:00:09]} 24. c5 {[%clk 00:10:25]} {[%emt 00:00:14]} Kf8 {[%clk 00:03:07]}
{[%emt 00:00:08]} 25. R7e3 {[%clk 00:10:16]} {[%emt 00:00:13]} Bb5 {[%clk
00:02:30]} {[%emt 00:00:41]} 26. Re6 {[%clk 00:09:36]} {[%emt 00:00:45]} g5
{[%clk 00:02:21]} {[%emt 00:00:15]} 27. Bh2 {[%clk 00:08:57]} {[%emt 00:00:44]}
Rb8 {[%clk 00:02:08]} {[%emt 00:00:19]} 28. c6 {[%clk 00:08:20]} {[%emt
00:00:41]} Rb6 {[%clk 00:01:56]} {[%emt 00:00:16]} 29. Re8+ {[%clk 00:07:32]}
{[%emt 00:00:54]} Kg7 {[%clk 00:01:59]} {[%emt 00:00:01]} 30. f4 {[%clk
00:06:52]} {[%emt 00:00:46]} Bxc6 {[%clk 00:01:30]} {[%emt 00:00:34]} 31. R8e7
{[%clk 00:06:42]} {[%emt 00:00:15]} Rb2 {[%clk 00:01:21]} {[%emt 00:00:14]} 32.
R1e2 {[%clk 00:05:23]} {[%emt 00:01:25]} Rxe2 {[%clk 00:01:24]} {[%emt
00:00:01]} 33. Rxe2 {[%clk 00:05:26]} {[%emt 00:00:02]} Bb5 {[%clk 00:01:20]}
{[%emt 00:00:10]} 34. Rc2 {[%clk 00:05:25]} {[%emt 00:00:06]} c6 {[%clk
00:01:12]} {[%emt 00:00:12]} 35. f5 {[%clk 00:05:08]} {[%emt 00:00:23]} Rd7
{[%clk 00:01:10]} {[%emt 00:00:06]} 36. Ra2 {[%clk 00:04:09]} {[%emt 00:01:02]}
Rd1+ {[%clk 00:01:13]} {[%emt 00:00:04]} 37. Kf2 {[%clk 00:04:14]} Rf1+ {[%clk
00:01:16]} {[%emt 00:00:01]} 38. Ke3 {[%clk 00:04:14]} {[%emt 00:00:01]} Rxf5
{[%clk 00:01:19]} {[%emt 00:00:06]} 39. a4 {[%clk 00:04:16]} {[%emt 00:00:04]}
Bc4 {[%clk 00:01:17]} {[%emt 00:00:06]} 40. g4 {[%clk 00:04:14]} {[%emt
00:00:07]} Bxa2 {[%clk 00:01:18]} {[%emt 00:00:05]} 41. gxf5 {[%clk 00:04:17]}
{[%emt 00:00:02]} Bb1 {[%clk 00:01:21]} {[%emt 00:00:02]} 42. Kd4 {[%clk
00:04:12]} {[%emt 00:00:08]} Bxf5 {[%clk 00:01:24]} {[%emt 00:00:03]} 43. Kc5
{[%clk 00:04:16]} {[%emt 00:00:01]} Bxh3 {[%clk 00:01:23]} {[%emt 00:00:06]} 44.
Kxc6 {[%clk 00:04:18]} {[%emt 00:00:04]} Bf1 {[%clk 00:01:26]} {[%emt
00:00:01]} 45. Kd6 {[%clk 00:04:15]} {[%emt 00:00:08]} Kg6 {[%clk 00:01:26]}
{[%emt 00:00:05]} 46. Kd5 {[%clk 00:04:14]} {[%emt 00:00:06]} f5 {[%clk
00:01:25]} {[%emt 00:00:06]} 47. Ke5 {[%clk 00:04:16]} {[%emt 00:00:02]} h5
{[%clk 00:01:27]} {[%emt 00:00:04]} 48. Bg1 {[%clk 00:04:18]} {[%emt 00:00:03]}
h4 {[%clk 00:01:24]} {[%emt 00:00:09]} 49. Bh2 {[%clk 00:04:09]} {[%emt
00:00:13]} Bd3 {[%clk 00:01:26]} {[%emt 00:00:02]} 50. Bg1 {[%clk 00:04:13]}
{[%emt 00:00:02]} Kh5 {[%clk 00:01:20]} {[%emt 00:00:11]} 51. a5 {[%clk
00:04:10]} {[%emt 00:00:08]} Kg4 {[%clk 00:01:21]} {[%emt 00:00:04]} 52. Kf6
{[%clk 00:04:14]} {[%emt 00:00:02]} f4 {[%clk 00:01:20]} {[%emt 00:00:05]} 53.
Bb6 {[%clk 00:04:12]} {[%emt 00:00:07]} h3 {[%clk 00:01:23]} {[%emt 00:00:02]}
54. Bf2 {[%clk 00:04:12]} {[%emt 00:00:05]} h2 {[%clk 00:01:25]} {[%emt
00:00:03]} 0-1